Cogmind - Beta 14 @@@ ROGUE MODE // 2025.01.13 @ 21:06:14 Player: Komeiji O. Result: Destroyed by Q8-O2W(j) with Overtuned Pulse Rifle Performance ------------- Evolutions (0) 0 Regions Visited (3) 600 Robots Destroyed (23) 115 Value Destroyed (538) 538 Prototype IDs (0) 0 Alien Tech Used (0) 0 Bonus (-41) -41 TOTAL SCORE: 1212 Bonus ------- Friendly Fire -41 Cogmind --------- Core Integrity 0/250 Matter 292/300 Energy 62/100 System Corruption 0% Temperature Warm (132) Movement Treading (232) Ox1 Location -8/Recycling Parts ------- > --- POWER (1) -------- (None) > --- PROPULSION (2) --- Light Treads Advanced Treads > --- UTILITY (2) ------ High-capacity Storage Unit Makeshift Kinetic Plating > --- WEAPON (2) ------- Subdweller Laser Subdweller Beam Cannon > --- INVENTORY (20) --- Wheel Subdweller Monowheel Subdweller Monowheel Scrap Engine Heat Sink Heat Sink Medium Matter Pod (100) Improved Terrain Scanner Seismic Detector Reaction Control System Scrap Shield EM Pulse Gun Medium Laser Beamcaster Subdweller Machine Gun Light Cannon Rocket Launcher Mini Grenade Launcher Peak State ------------ > --- POWER ------------ Subdweller Power Source > --- PROPULSION ------- Light Treads Advanced Treads > --- UTILITY ---------- High-capacity Storage Unit Makeshift Kinetic Plating > --- WEAPON ----------- Subdweller Laser Subdweller Beam Cannon > --- INVENTORY -------- Wheel Subdweller Monowheel Subdweller Monowheel Scrap Engine Heat Sink Heat Sink Medium Matter Pod Improved Terrain Scanner Seismic Detector Reaction Control System Scrap Shield EM Pulse Gun Medium Laser Beamcaster Subdweller Machine Gun Light Cannon Rocket Launcher Mini Grenade Launcher [Rating: 20] Favorites ----------- Power Subdweller Power Source Engine Subdweller Power Source Propulsion Light Treads Treads Light Treads Wheel Compact Wheel Utility High-capacity Storage Unit Device Seismic Detector Storage High-capacity Storage Unit Protection Makeshift Kinetic Plating Weapon Subdweller Laser Energy Gun Subdweller Laser Energy Cannon Subdweller Beam Cannon Ballistic Gun Subdweller Machine Gun Ballistic Cannon Light Cannon Launcher Subdweller Shrapnel Launcher Special Weapon Mining Laser Build | -11 -10 -10 -8 ------- Run | Yrd Mat Sub Rec Slots Evolved . | . . . . Power . | . . . . Propulsion . | . . . . Utility . | . . . . Weapon . | . . . . Parts Attached 37 | 9 19 8 1 Power 3 | 1 1 1 . Engine 3 | 1 1 1 . Core . | . . . . Reactor . | . . . . Propulsion 8 | 2 4 1 1 Treads 6 | 1 3 1 1 Leg . | . . . . Wheel 2 | 1 1 . . Hover . | . . . . Flight . | . . . . Utility 8 | 2 5 1 . Device 3 | 1 2 . . Storage 4 | 1 3 . . Processor . | . . . . Hackware . | . . . . Protection 1 | . . 1 . Artifact . | . . . . Weapon 18 | 4 9 5 . Energy Gun 10 | 4 4 2 . Energy Cannon 1 | . . 1 . Ballistic Gun 2 | . 1 1 . Ballistic Cannon 1 | . 1 . . Launcher 1 | . . 1 . Special Weapon 3 | . 3 . . Impact Weapon . | . . . . Slashing Weapon . | . . . . Piercing Weapon . | . . . . Special Melee Weapon . | . . . . Unidentified Prototypes . | . . . . Parts Lost 8 | . 6 . 2 Power 1 | . . . 1 Propulsion 3 | . 2 . 1 Utility 1 | . 1 . . Weapon 3 | . 3 . . Highest Loss Streak 3 | . 3 . 1 To Critical Strikes . | . . . . Average Slot Usage (%) 99 | . 98 99 100 Engine 13 | . 14 13 14 Treads 23 | . 16 27 28 Wheel 4 | . 11 . . Device 8 | . 8 10 . Storage 15 | . 19 14 14 Protection 3 | . . 3 14 Energy Gun 14 | . 21 10 14 Energy Cannon 5 | . . 6 14 Ballistic Gun 4 | . 2 7 . Ballistic Cannon 2 | . 1 2 . Peak Build Rating 20 | 8 10 16 20 Average Rating 11 | 5 8 13 16 On Entrance 7 | . 7 8 16 Naked Turns . | . . . . Heaviest Build 64 | 13 52 64 64 Greatest Support 42 | 16 40 40 42 Greatest Overweight (x) 4 | . 4 4 1 Average Overweight (x) 1 | . 1 1 1 Largest Inventory Capacity 20 | 8 20 20 20 Average Capacity 18 | 7 17 20 20 Most Carried 20 | 8 15 20 20 Average Carried 16 | 4 10 19 19 Final Capacity 20 | 8 20 20 20 Final Carried 20 | 6 15 20 20 Class Distribution -------------------- 71% | Mutant 28% | Scavenger-Mutant Dominant Class ---------------- Mutant | -10/Materials Scavenger-Mutant | -10/Subcaves Mutant | -8/Recycling Resources | -11 -10 -10 -8 ----------- Run | Yrd Mat Sub Rec Matter Collected 772 | 290 274 148 60 Remotely . | . . . . Salvage Created 703 | 104 483 56 60 Parts 43 | 10 30 3 . Haulers Intercepted 1 | . 1 . . Recyclers Shooed . | . . . . Parts Field Recycled . | . . . . Retrieved Matter . | . . . . Parts Self-Destructed 18 | . . 18 . Prevented . | . . . . Kills | -11 -10 -10 -8 ------- Run | Yrd Mat Sub Rec Combat Hostiles Destroyed 14 | . 11 2 1 Guns 7 | . 6 1 . Cannons 2 | . . 1 1 AOE 5 | . 5 . . Classes Destroyed 7 | 1 4 1 1 Tunneler 5 | 4 1 . . Hauler 1 | . 1 . . Watcher 3 | . 3 . . Swarmer 4 | . 3 1 . Grunt 8 | . 8 . . Sentry 1 | . . . 1 Subdweller 1 | . . 1 . Best Kill Streak 4 | 3 4 1 1 Combat Bots Only 3 | . 3 1 1 Max Kills in Single Turn 4 | 1 4 1 1 Gunslinging . | . . . . Exploded 3 | . 3 . . Melee . | . . . . Uniques/NPCs Destroyed . | . . . . Combat | -11 -10 -10 -8 -------- Run | Yrd Mat Sub Rec Hostile Shots Fired 72 | . 41 12 19 Missed 14 | . 7 5 2 Damage Taken 1244 | 39 630 276 299 Core 272 | . 156 32 84 Absorbed by Shields . | . . . . Ignored by Resistances 10 | . . . 10 Regen/Repaired (Parts) 39 | . 39 . . Core Remaining (%) 100 | 100 . . . Volleys Fired 88 | 9 46 25 8 Largest 2 | 2 2 2 2 Hottest 140 | 80 140 140 140 Shots Fired 148 | 15 81 37 15 Gun 113 | 15 66 25 7 Cannon 22 | . 3 11 8 Launcher 1 | . . 1 . Special 12 | . 12 . . Kinetic 28 | . 10 18 . Thermal 49 | 3 12 19 15 Explosive . | . . . . Electromagnetic 71 | 12 59 . . Robot Hit Streak 11 | 2 11 7 5 Robot Miss Streak 4 | 4 4 4 2 Penetration Max . | . . . . Secondary Targets 1 | . . 1 . Max Gunslinging Chain 1 | . . 1 . Shots Hit Robots 81 | 7 47 17 10 Core Hits 34 | 4 24 4 2 Critical Kills . | . . . . Critical Parts Destroyed . | . . . . Critical Strikes 1 | 1 . . . Corrupt 1 | 1 . . . Melee Attacks . | . . . . Impact . | . . . . Slashing . | . . . . Piercing . | . . . . Sneak Attacks . | . . . . Combat Hostiles . | . . . . Follow-up Attacks . | . . . . Damage Inflicted 1673 | 109 991 338 235 Guns 983 | 74 586 224 99 Cannons 270 | . 20 114 136 Explosions 395 | 35 360 . . Melee . | . . . . Ramming 1 | . 1 . . Kinetic 183 | . 49 134 . Thermal 880 | 57 384 204 235 Explosive . | . . . . Electromagnetic 609 | 52 557 . . Impact . | . . . . Slashing . | . . . . Piercing . | . . . . Highest Corruption . | . . . . Average Corruption . | . . . . Corruption Purged . | . . . . Corruption Blocked . | . . . . Overload Shots . | . . . . Overflow Damage 35 | . 35 . . Projectiles . | . . . . Explosions 35 | . 35 . . Melee . | . . . . Knockbacks 1 | . 1 . . Impact . | . . . . Kinetic 1 | . 1 . . Secondary . | . . . . Self-Inflicted Damage 276 | 39 237 . . Shots 5 | 1 4 . . Rammed 1 | . 1 . . Targets Rammed 1 | . 1 . . Kicked . | . . . . Crushed . | . . . . Highest Temperature 428 | 64 202 36 428 Average Temperature 65 | 28 42 20 186 Received Heat Transfer 419 | . 189 30 200 Effects 1 | . . . 1 Matter Decay 1 | . . . 1 Siege Activations . | . . . . Robots Corrupted . | . . . . Combat Hostiles . | . . . . Parts Fried 1 | . 1 . . Impact Corruptions . | . . . . Robots Melted . | . . . . Combat Hostiles . | . . . . Parts Melted 4 | . 2 2 . Heat Transferred 1127 | 100 500 249 278 Parts Sabotaged . | . . . . Parts Stolen . | . . . . Parts Stripped . | . . . . Power Chain Reactions 5 | 1 4 . . Alert | -11 -10 -10 -8 ------- Run | Yrd Mat Sub Rec Peak Influence 305 | 20 305 . 21 Initial 13 | . 13 . . Average 80 | 8 112 . 6 Maximum Alert Level 1 | . 1 . . Low Security (%) 80 | 100 71 . 100 Level 1 19 | . 28 . . Level 2 . | . . . . Level 3 . | . . . . Level 4 . | . . . . Level 5 . | . . . . High Security . | . . . . Max Security . | . . . . Squads Dispatched 2 | . 2 . . Investigation 1 | . 1 . . Extermination . | . . . . Reinforcement 1 | . 1 . . Assault . | . . . . Garrison . | . . . . Intercept . | . . . . Searches Triggered . | . . . . Construction Impeded . | . . . . Haulers Reinforced . | . . . . Active Scanning Responses . | . . . . Cargo Convoy Interrupts . | . . . . Stealth | -11 -10 -10 -8 --------- Run | Yrd Mat Sub Rec Distress Signals 1 | . 1 . . Communications Jammed . | . . . . Distress Signals . | . . . . Times Spotted 38 | . 18 17 3 Peak Tracking Total 6 | . 5 6 4 Tactical Retreats 2 | . 1 1 . Traps | -11 -10 -10 -8 ------- Run | Yrd Mat Sub Rec Traps Triggered 2 | . 1 1 . Indirectly . | . . . . Trap Hack Attempts . | . . . . Triggered . | . . . . Disarmed . | . . . . Reprogrammed . | . . . . Reused . | . . . . Traps Extracted . | . . . . Installed . | . . . . Triggered 1 | . 1 . . Machines | -11 -10 -10 -8 ---------- Run | Yrd Mat Sub Rec Machines Disabled 4 | . 2 1 1 Max in Single Turn 2 | . 2 1 1 Machines Repaired . | . . . . Machines Dismantled . | . . . . Machines Sabotaged . | . . . . Overloaded Fab Kills . | . . . . Hacking | -11 -10 -10 -8 --------- Run | Yrd Mat Sub Rec Machines Accessed 12 | . 9 . 3 Terminals 7 | . 7 . . Fabricators . | . . . . Repair Stations 1 | . 1 . . Recycling Units 3 | . 1 . 2 Scanalyzers . | . . . . Garrison Access . | . . . . Total Hacks 33 | . 26 . 7 Successful 20 | . 17 . 3 Failed 12 | . 8 . 4 Catastrophic 1 | . . . 1 Database Lockouts 1 | . 1 . . Manual 12 | . 12 . . Terminals 22 | . 22 . . Fabricators . | . . . . Repair Stations 2 | . 2 . . Recycling Units 7 | . 2 . 5 Scanalyzers . | . . . . Garrison Access . | . . . . Terminal Hacks 11 | . 9 . 2 Part Schematic 1 | . 1 . . Robot Analysis 1 | . 1 . . Unreport Threat 1 | . 1 . . Locate Traps 2 | . 2 . . Dispatch Records 1 | . 1 . . Hauler Manifests 1 | . 1 . . Zone Layout 2 | . 2 . . Release Object 2 | . . . 2 Fabricator Hacks . | . . . . Repair Station Hacks 2 | . 2 . . Scan Component 1 | . 1 . . Repair 1 | . 1 . . Recycling Unit Hacks 1 | . . . 1 Retrieve Components 1 | . . . 1 Scanalyzer . | . . . . Garrison Access Hacks . | . . . . Unauthorized Hacks 6 | . 6 . . Terminals 6 | . 6 . . Botnet 1 | . 1 . . Skim 5 | . 5 . . Fabricators . | . . . . Repair Stations . | . . . . Recycling Units . | . . . . Scanalyzers . | . . . . Garrison Access . | . . . . Data Cores Recovered . | . . . . Used . | . . . . Hacking Detections 11 | . 9 . 2 Full Trace Events . | . . . . Feedback Events . | . . . . Feedback Blocked . | . . . . Robot Schematics Acquired . | . . . . Robots Built . | . . . . Authchips . | . . . . Time . | . . . . Total Robot Build Rating . | . . . . Part Schematics Acquired 1 | . 1 . . Parts Built . | . . . . Authchips . | . . . . Time . | . . . . Total Part Build Rating . | . . . . Parts Repaired 1 | . 1 . . Time 26 | . 26 . . Parts Recycled . | . . . . Recycled Matter . | . . . . Retrieved Matter . | . . . . Retrieved Components 3 | . . . 3 Parts Scanalyzed . | . . . . Part Schematics Acquired . | . . . . Parts Damaged . | . . . . Bothacking | -11 -10 -10 -8 ------------ Run | Yrd Mat Sub Rec Used RIF Installer . | . . . . Robots Hacked . | . . . . Non-combat . | . . . . Combat . | . . . . Robot Hacks Applied . | . . . . Relay Couplers Released . | . . . . Fabnet Peak Effective % . | . . . . Robots Rewired . | . . . . Allies Hacked . | . . . . Hacks Repelled . | . . . . Allies | -11 -10 -10 -8 -------- Run | Yrd Mat Sub Rec Total Allies . | . . . . Largest Group . | . . . . Highest-Rated Group . | . . . . Highest-Rated Ally . | . . . . Total Orders . | . . . . Ally Attacks . | . . . . Total Damage . | . . . . Kills . | . . . . Allies Corrupted . | . . . . Allies Melted . | . . . . Intel | -11 -10 -10 -8 ------- Run | Yrd Mat Sub Rec Robot Analysis Total 1 | . 1 . . Derelict Logs Recovered 1 | . . 1 . Drone Launches . | . . . . Drone Recoveries . | . . . . Exploration | -11 -10 -10 -8 ------------- Run | Yrd Mat Sub Rec Turns Passed 3955 | 129 1238 2177 411 Spaces Moved 1866 | 84 715 906 161 Core 1 | 1 . . . Treads 1045 | . 67 817 161 Legs . | . . . . Wheels 820 | 83 648 89 . Hover . | . . . . Flight . | . . . . Fastest Speed 50 | 50 100 140 232 Average Speed 190 | 99 139 230 237 Slowest Speed 240 | 100 240 240 240 Overloaded Moves . | . . . . Propulsion Burnouts . | . . . . Robots Hopped . | . . . . Cave-ins Triggered . | . . . . Exploration Rate (%) 46 | 4 93 54 34 Regions Visited 3 Branch Regions 2 Pre-discovered Areas 1 | . 1 . . Known Exits Taken 2 | . 1 1 . Unknown Exits Taken 1 | 1 . . . Scrap Searched 1 | . . 1 . Spaces Dug 10 | . 10 . . Terrain Destroyed 78 | 3 61 12 2 Melee . | . . . . Projectile 13 | . 11 . 2 AOE 65 | 3 50 12 . Terrain Rammed . | . . . . Walls Destroyed . | . . . . Machines Disabled . | . . . . Actions | -11 -10 -10 -8 --------- Run | Yrd Mat Sub Rec Total 2105 | 111 850 964 180 Wait 57 | . 47 10 . Move 1863 | 83 714 905 161 Hop . | . . . . Pick Up 39 | 8 17 9 5 Fast Attach 9 | 7 1 1 . Attach 10 | . 7 2 1 Detach 2 | . 1 1 . Swap 18 | 2 11 5 . Drop 18 | 2 5 6 5 Fire 88 | 9 46 25 8 Melee . | . . . . Ram . | . . . . Kick . | . . . . Crush 1 | . 1 . . Escape Stasis . | . . . . Rewire . | . . . . Trap . | . . . . Miscellaneous . | . . . . Route ------- -11/Scrapyard -10/Materials (discovered 5 exits: [*Mat x3] / *Min / *Sub) -10/Subcaves (discovered 2 exits: [*Mat] / *Rec) -8/Recycling History --------- Turn | Location | Event 2 | -11/Scrapyard | Met Revision 17 23 | -11/Scrapyard | Discovered new exit (range 16) 130 | -11/Scrapyard | Entered Materials 185 | -10/Materials | Repaired Lgt. Treads 313 | -10/Materials | Build established: Mutant 402 | -10/Materials | Discovered new exit (range 15) 507 | -10/Materials | Discovered new exit (range 8) 668 | -10/Materials | Discovered new exit (range 11) 796 | -10/Materials | Learned Storage terminal intel 833 | -10/Materials | Central database locked down 838 | -10/Materials | Discovered new exit (range 11) 980 | -10/Materials | Learned location of Mines (-8) 1003 | -10/Materials | Identified exit to Mines 1048 | -10/Materials | Core integrity fell below 50% 1083 | -10/Materials | Identified exit to Subcaves 1083 | -10/Materials | Learned location of 2 exits from Materials 1203 | -10/Materials | Lost 3 parts (1n2w) 1368 | -10/Materials | Entered Subcaves 1369 | -10/Subcaves | Identified exit to Recycling 1483 | -10/Subcaves | A swath of the cavern ceiling suddenly collapsed 1485 | -10/Subcaves | Ambushed by swarm of Subdwellers 1563 | -10/Subcaves | Shifting Twisted Machinery released Mak. Kinetic Plating 1583 | -10/Subcaves | Shifting Twisted Machinery released Sub. Monowheel 1594 | -10/Subcaves | Discovered new exit (range 8) 2108 | -10/Subcaves | Build established: Scavenger-Mutant 2929 | -10/Subcaves | Disturbed a concealed Subdweller 3238 | -10/Subcaves | Build established: Mutant 3545 | -10/Subcaves | Entered Recycling 3808 | -8/Recycling | Core integrity fell below 20% 3898 | -8/Recycling | Scanned before Scraplab entrance 3931 | -8/Recycling | Entered Scraplab 3945 | -8/Recycling | Angered Scraplab inhabitants 3947 | -8/Recycling | Found Prototype Device 3956 | -8/Recycling | Destroyed by Q8-O2W(j) with Overtuned Pulse Rifle Last Messages --------------- and yours. 03907_ The floor rises up to form a wall. 03926_ MM-TLF(c) is busy at their terminal. 03933_ UY-332(c): "A little light reading never hurt anyone, but if you dare try to take our prototype, you'll regret it." 03942_ Connecting with Scraplab SEP... 03942_ Dropped Wheel. 03945_ Connecting with Scraplab SEP... >>Release Inventory Accessing inventory controls... Prototype released... URGENT: Link to external system right away! 03946_ Machine disabled. 03947_ Acquired Prototype Device. 03948_ Critical hit (Burn: +50). Prototype Device integrity failing. 03951_ Q8-O2W(j): "Defend the Scraplab!" 03951_ Critical hit (Burn: +50). 03953_ Supplies damaged. 03956_ Sub. Power Source destroyed. Map ----- +----------------------------------------------------+ | | | | | | | | | | | | | | | | | | | | | | | | | | | | | | | | | | | | | | | | | | | | | ??????????????????#########??????????????????????? | | ??????????????????#"" """"#??????????????????????? | | ??????????????????# " X " ## #???????????????????? | | ????????????####### c @ j #???????????????????? | | ???????????## + j c #???????????????????? | | ???????????# ##### #???????????????????? | | ???????????## #???# ""#???????????????????? | | ????????????# #???#"& "& X ""#???????????????????? | | ????????????# #???#"""""""" #???????????????????? | | ?????????#####################???????????????????? | | ?????????# #???????????????????????????????? | | ?????????# #???????????????????????????????? | | ?????????# #???????????????????????????????? | | #####????# #???????????????????????????????? | | ????####+####????###????????????????????????? | | ??????# ######### ###########??????????????? | | ####### #????????????? | | + ############+#####+##??????????????? | | #########?????## #??????????????? | | ??????????????## +??????????????? | | ######?#####?#####???# #??????????????? | | ?#! !#?#!!!#?#"""#???# #??????????????? | | ## !!###!!!###"Y"##### #??????????????? | | = # #??????????????? | | + #??????????????? | | # #??????????????? | | ####### # #??????????????? | | !! # # #??????????????? | +----------------------------------------------------+ Best States ------------- Heat Dissipation 25 Energy Generation 10 Energy Capacity 200 Matter Stores 300 Matter Capacity 300 Sight Range 16 Terrain Scan Range 16 Terrain Scan Density 10 Armor Coverage 100 Resistance: KI 10 Evasion (%) 40 Recoil Reduction 2 Item Schematics ----------------- Hcp. Storage Unit | -10/Materials | Hacked Robot Schematics ------------------ None Fabricated ------------ Nothing Alien Tech Used ----------------- None Achievements -------------- None Challenges ------------ None Game ------ Seed FlyingCloakCorpse Manual? 0 Play Time 00:26:46 Cumulative 267.0 hours Start 2025.01.13 @ 20:41:42 End 2025.01.13 @ 21:06:14 Sessions 1 Manual Loads 0 Difficulty Rogue Special Mode None Game No. 92 Rogue 91 Adventurer 1 Explorer 0 Win Type - Total 8 Types 7/0/1/0/0/0/0/0/0 Lore% 70 Gallery% 77 Achievement% 63 Wizard Run 0 Options --------- Layout 0 ASCII 0 Keyboard 1 Movement Vi Keybinds 0 Fullscreen 2 Font 36/Terminus++ Map View 76x50 Zoom Use 0% Tactical HUD 1 Map Filters NONE Filters NONE Steam 0 RUN: 57e7a65d-cab6-4aa2-ad95-e762b817f24c